[Event "Championnat du monde jeunes U12F"]
[Date "2024.11.16"]
[White "Chen, Pin-I"]
[Black "Hrckova, Anna"]
[WhiteElo "1601"]
[BlackElo "1441"]
[Round "2.42"]
[Result "0-1"]
[TimeControl "5400+30"]

1. d4 {[%clk 1:30:57]} 1... d5 {[%clk 1:30:54]} 2. c4 {[%clk 1:31:17]} 2... c6
{[%clk 1:30:57]} 3. Nf3 {[%clk 1:31:33]} 3... Nf6 {[%clk 1:31:16]} 4. Qb3 {[%clk
1:31:50]} 4... dxc4 {[%clk 1:28:12]} 5. Qxc4 {[%clk 1:30:23]} 5... Bf5 {[%clk
1:28:17]} 6. g3 {[%clk 1:28:31]} 6... e6 {[%clk 1:28:34]} 7. Bg2 {[%clk
1:28:38]} 7... Nbd7 {[%clk 1:28:53]} 8. O-O {[%clk 1:26:57]} 8... Be7 {[%clk
1:28:55]} 9. Nc3 {[%clk 1:26:12]} 9... O-O {[%clk 1:27:56]} 10. Qb3 {[%clk
1:25:26]} 10... Qb6 {[%clk 1:27:47]} 11. Qxb6 {[%clk 1:06:05]} 11... axb6 {[%clk
1:26:32]} 12. Bf4 {[%clk 1:05:29]} 12... Ne4 {[%clk 1:20:44]} 13. Nxe4 {[%clk
1:00:07]} 13... Bxe4 {[%clk 1:19:43]} 14. Ne5 {[%clk 0:57:59]} 14... Bxg2 {[%clk
1:19:19]} 15. Kxg2 {[%clk 0:57:43]} 15... Nxe5 {[%clk 1:19:18]} 16. Bxe5 {[%clk
0:58:02]} 16... f6 {[%clk 1:19:34]} 17. Bf4 {[%clk 0:52:27]} 17... Rfd8 {[%clk
1:17:51]} 18. e3 {[%clk 0:38:20]} 18... Rd7 {[%clk 1:14:20]} 19. h4 {[%clk
0:36:17]} 19... h6 {[%clk 1:14:08]} 20. h5 {[%clk 0:34:44]} 20... b5 {[%clk
0:46:09]} 21. a3 {[%clk 0:34:19]} 21... Kf7 {[%clk 0:43:52]} 22. Rad1 {[%clk
0:32:13]} 22... b4 {[%clk 0:41:35]} 23. axb4 {[%clk 0:31:50]} 23... Bxb4 {[%clk
0:41:54]} 24. Ra1 {[%clk 0:29:40]} 24... Rdd8 {[%clk 0:41:28]} 25. g4 {[%clk
0:28:11]} 25... Ra5 {[%clk 0:36:51]} 26. Bc7 {[%clk 0:26:37]} 26... Rxa1 {[%clk
0:37:04]} 27. Rxa1 {[%clk 0:26:54]} 27... Rd5 {[%clk 0:36:58]} 28. Ra4 {[%clk
0:24:39]} 28... Rb5 {[%clk 0:36:57]} 29. e4 {[%clk 0:22:31]} 29... Bd2 {[%clk
0:36:53]} 30. Ra2 {[%clk 0:15:34]} 30... Bc1 {[%clk 0:35:46]} 31. Bd6 {[%clk
0:15:49]} 31... Rxb2 {[%clk 0:35:56]} 32. Rxb2 {[%clk 0:13:43]} 32... Bxb2
{[%clk 0:36:19]} 33. Bc5 {[%clk 0:14:07]} 33... b5 {[%clk 0:36:31]} 34. Kf3
{[%clk 0:14:22]} 34... g6 {[%clk 0:35:56]} 35. hxg6+ {[%clk 0:14:41]} 35... Kxg6
{[%clk 0:36:20]} 36. Ke3 {[%clk 0:15:06]} 36... Bc1+ {[%clk 0:36:31]} 37. Kd3
{[%clk 0:15:01]} 37... f5 {[%clk 0:36:17]} 38. exf5+ {[%clk 0:15:21]} 38... exf5
{[%clk 0:36:26]} 39. gxf5+ {[%clk 0:15:21]} 39... Kxf5 {[%clk 0:36:50]} 40. Ke2
{[%clk 0:15:30]} 40... Kg4 {[%clk 0:36:52]} 41. Kf1 {[%clk 0:15:45]} 41... h5
{[%clk 0:35:59]} 42. Kg2 {[%clk 0:16:01]} 42... Bd2 {[%clk 0:34:24]} 43. f3+
{[%clk 0:13:14]} 43... Kf5 {[%clk 0:34:49]} 44. Ba3 {[%clk 0:08:56]} 44... Bc3
{[%clk 0:34:53]} 45. d5 {[%clk 0:08:26]} 45... cxd5 {[%clk 0:35:10]} 46. Kg3
{[%clk 0:08:41]} 46... b4 {[%clk 0:34:54]} 0-1

[Variant "Standard"]
[Site "Europe Echecs"]

[Event "Championnat du monde jeunes U12F"]
[Date "2024.11.17"]
[White "Zavivaeva, Kristina"]
[Black "Buyankhishig, Batpelden"]
[WhiteElo "1775"]
[BlackElo "1867"]
[Round "3.2"]
[Result "1/2-1/2"]
[TimeControl "5400+30"]

1. Nf3 {[%clk 1:30:58]} 1... d5 {[%clk 1:30:20]} 2. g3 {[%clk 1:30:57]} 2... Nf6
{[%clk 1:30:12]} 3. Bg2 {[%clk 1:31:06]} 3... Bf5 {[%clk 1:30:13]} 4. O-O {[%clk
1:30:33]} 4... e6 {[%clk 1:30:28]} 5. c4 {[%clk 1:30:54]} 5... c6 {[%clk
1:27:52]} 6. cxd5 {[%clk 1:30:25]} 6... exd5 {[%clk 1:27:21]} 7. d3 {[%clk
1:30:12]} 7... Bd6 {[%clk 1:24:11]} 8. Nc3 {[%clk 1:29:12]} 8... O-O {[%clk
1:24:11]} 9. Qb3 {[%clk 1:26:48]} 9... Qb6 {[%clk 1:20:37]} 10. Qc2 {[%clk
1:26:12]} 10... Re8 {[%clk 1:18:22]} 11. Re1 {[%clk 1:24:30]} 11... Nbd7 {[%clk
1:12:36]} 12. e4 {[%clk 1:21:07]} 12... Bg4 {[%clk 1:09:51]} 13. Be3 {[%clk
1:19:26]} 13... Qa6 {[%clk 1:06:45]} 14. Nh4 {[%clk 1:15:52]} 14... Rac8 {[%clk
1:01:19]} 15. h3 {[%clk 1:12:02]} 15... Bh5 {[%clk 1:00:00]} 16. f4 {[%clk
1:08:03]} 16... dxe4 {[%clk 0:51:30]} 17. dxe4 {[%clk 1:08:22]} 17... Bc5 {[%clk
0:50:43]} 18. g4 {[%clk 1:00:56]} 18... Bxe3+ {[%clk 0:46:30]} 19. Rxe3 {[%clk
1:01:20]} 19... Qb6 {[%clk 0:45:16]} 20. Re1 {[%clk 0:53:12]} 20... Bxg4 {[%clk
0:44:18]} 21. Na4 {[%clk 0:51:53]} 21... Qb4 {[%clk 0:31:57]} 22. hxg4 {[%clk
0:47:56]} 22... Nxg4 {[%clk 0:32:14]} 23. Qb3 {[%clk 0:29:51]} 23... Qd2 {[%clk
0:25:01]} 24. R1e2 {[%clk 0:20:36]} 24... Qc1+ {[%clk 0:23:29]} 25. Re1 {[%clk
0:20:43]} 25... Qd2 {[%clk 0:23:41]} 26. R1e2 {[%clk 0:20:26]} 26... Qd6 {[%clk
0:18:38]} 27. Bh3 {[%clk 0:12:09]} 27... Nxe3 {[%clk 0:17:06]} 28. Qxe3 {[%clk
0:12:31]} 28... Rcd8 {[%clk 0:14:29]} 29. Nc3 {[%clk 0:11:34]} 29... Nf8 {[%clk
0:11:56]} 30. Nf5 {[%clk 0:10:18]} 30... Qb4 {[%clk 0:12:11]} 31. Qxa7 {[%clk
0:09:19]} 31... Rd3 {[%clk 0:10:42]} 32. Bg2 {[%clk 0:09:21]} 32... b6 {[%clk
0:09:22]} 33. Qc7 {[%clk 0:07:09]} 33... Qc5+ {[%clk 0:08:54]} 34. Kh2 {[%clk
0:06:54]} 34... Rd7 {[%clk 0:09:07]} 35. Na4 {[%clk 0:05:54]} 35... Qc4 {[%clk
0:07:22]} 36. Nxb6 {[%clk 0:06:00]} 36... Qxe2 {[%clk 0:06:46]} 37. Nxd7 {[%clk
0:06:19]} 37... Qh5+ {[%clk 0:05:28]} 38. Kg3 {[%clk 0:06:19]} 38... Ne6 {[%clk
0:03:50]} 39. Qxc6 {[%clk 0:05:10]} 39... Qg6+ {[%clk 0:03:37]} 40. Kf2 {[%clk
0:05:30]} 40... f6 {[%clk 0:02:49]} 41. Nh4 {[%clk 0:04:48]} 41... Qh5 {[%clk
0:02:31]} 42. Kg3 {[%clk 0:03:23]} 42... Nxf4 {[%clk 0:02:40]} 43. Kxf4 {[%clk
0:02:29]} 43... Qxh4+ {[%clk 0:03:03]} 44. Kf3 {[%clk 0:02:44]} 44... Rd8 {[%clk
0:02:42]} 45. Qc7 {[%clk 0:02:48]} 45... Qh5+ {[%clk 0:02:58]} 46. Kf2 {[%clk
0:03:11]} 46... Re8 {[%clk 0:02:28]} 47. a4 {[%clk 0:02:50]} 47... Qh4+ {[%clk
0:02:07]} 48. Qg3 {[%clk 0:02:28]} 48... Qh6 {[%clk 0:02:34]} 49. Qe3 {[%clk
0:02:23]} 49... Qh4+ {[%clk 0:03:02]} 50. Kf1 {[%clk 0:02:41]} 50... Rd8 {[%clk
0:02:33]} 51. Qd2 {[%clk 0:01:58]} 51... Kh8 {[%clk 0:02:45]} 52. b4 {[%clk
0:01:20]} 52... Qg4 {[%clk 0:01:36]} 53. Nxf6 {[%clk 0:01:32]} 53... Rf8 {[%clk
0:01:56]} 54. b5 {[%clk 0:00:59]} 54... Rxf6+ {[%clk 0:02:18]} 55. Kg1 {[%clk
0:01:25]} 55... h5 {[%clk 0:02:00]} 56. b6 {[%clk 0:01:37]} 56... Rf7 {[%clk
0:01:56]} 57. Qd5 {[%clk 0:01:18]} 57... Rd7 {[%clk 0:01:43]} 58. b7 {[%clk
0:01:28]} 58... Rxb7 {[%clk 0:00:47]} 59. Qxb7 {[%clk 0:01:52]} 59... Qd1+
{[%clk 0:01:15]} 60. Kh2 {[%clk 0:02:14]} 60... Qxa4 {[%clk 0:01:35]} 61. Qc8+
{[%clk 0:02:24]} 61... Kh7 {[%clk 0:02:04]} 62. Qf5+ {[%clk 0:02:45]} 62... Kh6
{[%clk 0:01:53]} 63. Qf4+ {[%clk 0:03:10]} 63... Kh7 {[%clk 0:02:15]} 64. Qg5
{[%clk 0:03:24]} 64... Qe8 {[%clk 0:01:49]} 65. e5 {[%clk 0:03:37]} 65... Qg6
{[%clk 0:01:28]} 66. Qf4 {[%clk 0:03:34]} 66... Qe6 {[%clk 0:01:25]} 67. Be4+
{[%clk 0:02:55]} 67... Kg8 {[%clk 0:01:48]} 68. Kg3 {[%clk 0:02:39]} 68... g6
{[%clk 0:01:07]} 69. Qg5 {[%clk 0:01:59]} 69... Kg7 {[%clk 0:01:35]} 70. Kh4
{[%clk 0:01:44]} 70... Qf7 {[%clk 0:01:16]} 71. Qg3 {[%clk 0:00:54]} 71... Qe7+
{[%clk 0:01:21]} 72. Kh3 {[%clk 0:00:43]} 72... Qe6+ {[%clk 0:01:51]} 73. Kh2
{[%clk 0:00:56]} 73... Qa2+ {[%clk 0:01:41]} 74. Bg2 {[%clk 0:01:15]} 74... Qc4
{[%clk 0:01:04]} 75. Qf2 {[%clk 0:01:16]} 75... Qe6 {[%clk 0:00:43]} 76. Qd4
{[%clk 0:01:40]} 76... Kh6 {[%clk 0:01:09]} 77. Bd5 {[%clk 0:01:44]} 77... Qa6
{[%clk 0:01:12]} 78. e6 {[%clk 0:00:58]} 78... Qe2+ {[%clk 0:01:37]} 79. Kg3
{[%clk 0:01:17]} 79... Qe1+ {[%clk 0:01:48]} 80. Qf2 {[%clk 0:01:09]} 80... Qc3+
{[%clk 0:01:21]} 81. Kg2 {[%clk 0:01:19]} 81... Qe5 {[%clk 0:01:31]} 82. Qf8+
{[%clk 0:00:48]} 82... Kg5 {[%clk 0:00:44]} 83. Qd8+ {[%clk 0:01:04]} 83... Kf4
{[%clk 0:01:06]} 84. Qh4+ {[%clk 0:00:41]} 84... Kf5 {[%clk 0:01:18]} 85. Qf2+
{[%clk 0:00:37]} 85... Kg5 {[%clk 0:01:09]} 86. Qf3 {[%clk 0:00:40]} 86... Kh6
{[%clk 0:00:40]} 87. Kh3 {[%clk 0:00:45]} 87... g5 {[%clk 0:00:40]} 88. Qf8+
{[%clk 0:00:53]} 88... Kg6 {[%clk 0:00:50]} 89. Qg8+ {[%clk 0:00:41]} 89... Kh6
{[%clk 0:01:09]} 90. Qf8+ {[%clk 0:00:44]} 90... Kg6 {[%clk 0:01:38]} 91. Qe8+
{[%clk 0:00:45]} 91... Kh6 {[%clk 0:01:19]} 92. Qf8+ {[%clk 0:00:49]} 92... Kg6
{[%clk 0:01:48]} 93. Qg8+ {[%clk 0:00:51]} 93... Kh6 {[%clk 0:02:13]} 94. Qf8+
{[%clk 0:00:49]} 94... Kg6 {[%clk 0:02:43]} 95. Qe8+ {[%clk 0:01:10]} 95... Kh6
{[%clk 0:03:08]} 96. Qf8+ {[%clk 0:01:32]} 96... Kg6 {[%clk 0:03:38]} 97. Qg8+
{[%clk 0:01:42]} 97... Kh6 {[%clk 0:04:06]} 98. Qf8+ {[%clk 0:01:55]} 1/2-1/2

[Variant "Standard"]
[Site "Europe Echecs"]

[Event "Championnat du monde jeunes U12F"]
[Date "2024.11.17"]
[White "Ejsymont, Blanka"]
[Black "Alcantara, Levanah"]
[WhiteElo "1945"]
[BlackElo "1753"]
[Round "3.10"]
[Result "1-0"]
[TimeControl "5400+30"]

1. e4 {[%clk 1:30:58]} 1... e6 {[%clk 1:30:49]} 2. d4 {[%clk 1:31:24]} 2... d5
{[%clk 1:31:12]} 3. e5 {[%clk 1:31:52]} 3... c5 {[%clk 1:31:24]} 4. c3 {[%clk
1:32:18]} 4... Nc6 {[%clk 1:31:28]} 5. Nf3 {[%clk 1:32:41]} 5... Qb6 {[%clk
1:31:15]} 6. Na3 {[%clk 1:31:38]} 6... cxd4 {[%clk 1:28:25]} 7. cxd4 {[%clk
1:32:03]} 7... Bb4+ {[%clk 1:26:43]} 8. Bd2 {[%clk 1:31:59]} 8... Bxa3 {[%clk
1:25:20]} 9. bxa3 {[%clk 1:31:57]} 9... Nxd4 {[%clk 1:21:21]} 10. Qa4+ {[%clk
1:32:01]} 10... Nc6 {[%clk 1:21:38]} 11. Bd3 {[%clk 1:30:35]} 11... Ne7 {[%clk
1:19:17]} 12. O-O {[%clk 1:28:24]} 12... Bd7 {[%clk 1:16:09]} 13. Qg4 {[%clk
1:24:32]} 13... Ng6 {[%clk 1:14:54]} 14. Rfe1 {[%clk 1:13:39]} 14... Rc8 {[%clk
0:54:43]} 15. h4 {[%clk 1:09:20]} 15... h5 {[%clk 0:44:08]} 16. Qg3 {[%clk
1:01:42]} 16... Nce7 {[%clk 0:42:42]} 17. Rab1 {[%clk 0:58:27]} 17... Qc7 {[%clk
0:39:22]} 18. Bb4 {[%clk 0:55:18]} 18... Rh6 {[%clk 0:33:55]} 19. Bd6 {[%clk
0:52:00]} 19... Qa5 {[%clk 0:32:39]} 20. Rxb7 {[%clk 0:42:58]} 20... Qa4 {[%clk
0:25:00]} 21. Bxe7 {[%clk 0:40:14]} 21... Nxe7 {[%clk 0:21:38]} 22. Qxg7 {[%clk
0:38:57]} 22... Qf4 {[%clk 0:15:02]} 23. Rb4 {[%clk 0:32:43]} 23... Rc4 {[%clk
0:14:25]} 24. Bxc4 {[%clk 0:31:55]} 24... Rg6 {[%clk 0:12:24]} 25. Qh8+ {[%clk
0:31:03]} 25... Ng8 {[%clk 0:11:10]} 26. Rb8+ {[%clk 0:29:30]} 26... Ke7 {[%clk
0:11:22]} 27. Rxg8 {[%clk 0:29:15]} 1-0

[Variant "Standard"]
[Site "Europe Echecs"]

[Event "Championnat du monde jeunes U12F"]
[Date "2024.11.17"]
[White "Muradova, Nebahat"]
[Black "Illes-Nagy, Nora"]
[WhiteElo "1626"]
[BlackElo "1803"]
[Round "3.17"]
[Result "0-1"]
[TimeControl "5400+30"]

1. d4 {[%clk 1:30:57]} 1... d5 {[%clk 1:30:56]} 2. c4 {[%clk 1:31:20]} 2... c6
{[%clk 1:31:21]} 3. Nf3 {[%clk 1:31:44]} 3... Nf6 {[%clk 1:31:42]} 4. Nc3 {[%clk
1:32:09]} 4... e6 {[%clk 1:32:05]} 5. cxd5 {[%clk 1:32:31]} 5... exd5 {[%clk
1:32:21]} 6. Bg5 {[%clk 1:32:54]} 6... h6 {[%clk 1:32:33]} 7. Bh4 {[%clk
1:33:19]} 7... Bf5 {[%clk 1:32:52]} 8. e3 {[%clk 1:33:28]} 8... Nbd7 {[%clk
1:33:01]} 9. Bd3 {[%clk 1:33:48]} 9... Bxd3 {[%clk 1:33:22]} 10. Qxd3 {[%clk
1:34:04]} 10... Be7 {[%clk 1:33:24]} 11. O-O {[%clk 1:34:07]} 11... O-O {[%clk
1:33:40]} 12. a3 {[%clk 1:31:38]} 12... a5 {[%clk 1:31:09]} 13. Rab1 {[%clk
1:30:49]} 13... a4 {[%clk 1:26:11]} 14. Qc2 {[%clk 1:28:37]} 14... b5 {[%clk
1:23:31]} 15. Bxf6 {[%clk 1:24:26]} 15... Bxf6 {[%clk 1:20:26]} 16. Na2 {[%clk
1:21:04]} 16... Rc8 {[%clk 1:17:11]} 17. Rbc1 {[%clk 1:16:37]} 17... Nb6 {[%clk
1:04:03]} 18. Nb4 {[%clk 1:15:29]} 18... Nc4 {[%clk 1:04:12]} 19. Nd2 {[%clk
1:13:41]} 19... c5 {[%clk 0:47:58]} 20. dxc5 {[%clk 0:58:16]} 20... Bxb2 {[%clk
0:42:46]} 21. Rcd1 {[%clk 0:58:21]} 21... Bxa3 {[%clk 0:41:25]} 22. Na2 {[%clk
0:48:14]} 22... Rxc5 {[%clk 0:35:36]} 23. Nxc4 {[%clk 0:48:10]} 23... Rxc4
{[%clk 0:35:37]} 24. Qd3 {[%clk 0:48:14]} 24... b4 {[%clk 0:34:08]} 25. Nc1
{[%clk 0:44:09]} 25... Bxc1 {[%clk 0:29:00]} 26. Rxc1 {[%clk 0:43:37]} 26... Qc7
{[%clk 0:29:03]} 27. Qd2 {[%clk 0:42:57]} 27... Qc5 {[%clk 0:27:54]} 28. Rb1
{[%clk 0:41:20]} 28... b3 {[%clk 0:27:39]} 29. Rfd1 {[%clk 0:41:13]} 29... Rb8
{[%clk 0:26:49]} 30. Ra1 0-1

[Variant "Standard"]
[Site "Europe Echecs"]

[Event "Championnat du monde jeunes U12F"]
[Date "2024.11.18"]
[White "Amanzhol, Khanzada"]
[Black "Tu, Audrey"]
[WhiteElo "1780"]
[BlackElo "1765"]
[Round "4.1"]
[Result "1-0"]
[TimeControl "5400+30"]

1. e4 {[%clk 1:30:30]} 1... e5 {[%clk 1:30:56]} 2. Nf3 {[%clk 1:30:40]} 2... Nc6
{[%clk 1:31:20]} 3. d4 {[%clk 1:31:02]} 3... exd4 {[%clk 1:31:24]} 4. Nxd4
{[%clk 1:31:27]} 4... Nf6 {[%clk 1:31:48]} 5. Nxc6 {[%clk 1:31:56]} 5... bxc6
{[%clk 1:32:10]} 6. Qe2 {[%clk 1:32:06]} 6... Be7 {[%clk 1:27:47]} 7. e5 {[%clk
1:30:42]} 7... Nd5 {[%clk 1:23:33]} 8. c4 {[%clk 1:30:10]} 8... Bb4+ {[%clk
1:17:06]} 9. Bd2 {[%clk 1:28:41]} 9... Bxd2+ {[%clk 1:16:37]} 10. Qxd2 {[%clk
1:28:26]} 10... Nb6 {[%clk 1:12:00]} 11. Nc3 {[%clk 1:25:41]} 11... Bb7 {[%clk
1:03:58]} 12. O-O-O {[%clk 1:20:46]} 12... O-O {[%clk 1:00:50]} 13. f4 {[%clk
1:16:52]} 13... c5 {[%clk 0:51:39]} 14. Qf2 {[%clk 1:11:24]} 14... Qe7 {[%clk
0:48:46]} 15. Bd3 {[%clk 1:08:51]} 15... f6 {[%clk 0:44:46]} 16. Qh4 {[%clk
1:04:42]} 16... h6 {[%clk 0:43:35]} 17. Rhe1 {[%clk 0:57:27]} 17... Qf7 {[%clk
0:38:42]} 18. exf6 {[%clk 0:50:29]} 18... Qxf6 {[%clk 0:37:56]} 19. Qxf6 {[%clk
0:50:45]} 19... Rxf6 {[%clk 0:37:51]} 20. g3 {[%clk 0:50:42]} 20... d6 {[%clk
0:32:31]} 21. Re7 {[%clk 0:45:43]} 21... Rf7 {[%clk 0:30:02]} 22. Rde1 {[%clk
0:44:20]} 22... Kf8 {[%clk 0:27:40]} 23. R7e6 {[%clk 0:42:08]} 23... Bc6 {[%clk
0:23:23]} 24. Bg6 {[%clk 0:39:52]} 24... Rf6 {[%clk 0:22:33]} 25. Rxf6+ {[%clk
0:40:18]} 25... gxf6 {[%clk 0:23:00]} 26. b3 {[%clk 0:40:28]} 26... a6 {[%clk
0:19:07]} 27. Re6 {[%clk 0:38:49]} 27... Kg7 {[%clk 0:16:32]} 28. Bh5 {[%clk
0:39:04]} 28... Nd7 {[%clk 0:10:41]} 29. Nd1 {[%clk 0:35:37]} 29... Rc8 {[%clk
0:08:05]} 30. Ne3 {[%clk 0:35:02]} 30... Nf8 {[%clk 0:06:34]} 31. Nf5+ {[%clk
0:34:38]} 31... Kh8 {[%clk 0:06:18]} 32. Rxf6 {[%clk 0:34:48]} 32... Nh7 {[%clk
0:05:04]} 33. Rxh6 {[%clk 0:34:43]} 33... Be4 {[%clk 0:04:12]} 34. Bg6 {[%clk
0:35:07]} 1-0

[Variant "Standard"]
[Site "Europe Echecs"]

[Event "Championnat du monde jeunes U12F"]
[Date "2024.11.18"]
[White "Sinkar, Anagha Aniket"]
[Black "Bassari, Senem Gul"]
[WhiteElo "1723"]
[BlackElo "1778"]
[Round "4.2"]
[Result "1-0"]
[TimeControl "5400+30"]

1. e4 {[%clk 1:30:47]} 1... c5 {[%clk 1:30:45]} 2. c3 {[%clk 1:30:52]} 2... d5
{[%clk 1:30:59]} 3. exd5 {[%clk 1:30:13]} 3... Qxd5 {[%clk 1:31:15]} 4. d4
{[%clk 1:30:09]} 4... Nf6 {[%clk 1:31:35]} 5. Be3 {[%clk 1:29:24]} 5... e6
{[%clk 1:26:31]} 6. dxc5 {[%clk 1:29:20]} 6... Nbd7 {[%clk 1:14:04]} 7. b4
{[%clk 1:21:19]} 7... a5 {[%clk 1:05:27]} 8. Nf3 {[%clk 1:13:21]} 8... Be7
{[%clk 0:55:28]} 9. Bb5 {[%clk 1:03:26]} 9... axb4 {[%clk 0:51:02]} 10. cxb4
{[%clk 1:02:19]} 10... Qxd1+ {[%clk 0:50:47]} 11. Kxd1 {[%clk 1:02:32]} 11...
Nd5 {[%clk 0:50:55]} 12. c6 {[%clk 0:58:20]} 12... bxc6 {[%clk 0:35:05]} 13.
Bxc6 {[%clk 0:57:31]} 13... Nxe3+ {[%clk 0:33:25]} 14. fxe3 {[%clk 0:57:37]}
14... Ra7 {[%clk 0:33:16]} 15. b5 {[%clk 0:56:16]} 15... O-O {[%clk 0:32:24]}
16. Nbd2 {[%clk 0:40:56]} 16... Nb6 {[%clk 0:27:51]} 17. e4 {[%clk 0:36:15]}
17... Rd8 {[%clk 0:19:28]} 18. Kc2 {[%clk 0:34:04]} 18... Ra4 {[%clk 0:15:10]}
19. Rhd1 {[%clk 0:30:32]} 19... Bd7 {[%clk 0:10:42]} 20. Bxd7 {[%clk 0:20:22]}
20... Rxd7 {[%clk 0:10:28]} 21. Rdc1 {[%clk 0:11:32]} 21... Nc4 {[%clk 0:04:24]}
22. Nxc4 {[%clk 0:08:29]} 22... Rxc4+ {[%clk 0:04:50]} 23. Kb3 {[%clk 0:07:44]}
23... Rb4+ {[%clk 0:05:15]} 24. Kc3 {[%clk 0:08:04]} 24... Rxe4 {[%clk 0:01:58]}
25. Rab1 {[%clk 0:05:16]} 25... Re3+ {[%clk 0:01:30]} 26. Kc4 {[%clk 0:04:59]}
26... Re4+ {[%clk 0:01:02]} 27. Kc3 {[%clk 0:05:18]} 27... Re3+ {[%clk 0:00:50]}
28. Kc4 {[%clk 0:05:40]} 28... Re4+ {[%clk 0:01:15]} 29. Kc3 {[%clk 0:02:47]}
29... Bf6+ {[%clk 0:01:16]} 30. Kb3 {[%clk 0:01:47]} 30... Rd3+ {[%clk 0:00:52]}
31. Kc2 {[%clk 0:02:10]} 31... Rd6 {[%clk 0:00:36]} 32. Kb3 {[%clk 0:02:01]}
32... Rd3+ {[%clk 0:00:44]} 33. Kc2 {[%clk 0:02:26]} 33... Rd8 {[%clk 0:00:39]}
34. Kb3 {[%clk 0:01:46]} 34... Re3+ {[%clk 0:00:36]} 35. Kc4 {[%clk 0:01:33]}
35... Ra3 {[%clk 0:00:38]} 36. b6 {[%clk 0:01:49]} 36... Ra4+ {[%clk 0:00:33]}
37. Kb5 {[%clk 0:01:50]} 37... Raa8 {[%clk 0:00:35]} 38. b7 {[%clk 0:02:08]}
38... Rab8 {[%clk 0:00:41]} 39. Ka6 {[%clk 0:02:28]} 39... e5 {[%clk 0:00:38]}
40. Rc4 {[%clk 0:02:37]} 40... Re8 {[%clk 0:00:38]} 41. Ka7 {[%clk 0:02:43]}
41... h5 {[%clk 0:00:35]} 42. Rbc1 {[%clk 0:03:02]} 42... e4 {[%clk 0:00:33]}
43. Ne1 {[%clk 0:01:32]} 43... Bg5 {[%clk 0:00:38]} 44. R1c2 {[%clk 0:01:02]}
44... Be3+ {[%clk 0:00:57]} 45. Ka6 {[%clk 0:01:23]} 45... Kh7 {[%clk 0:00:45]}
46. Rc8 {[%clk 0:01:36]} 46... Re6+ {[%clk 0:00:34]} 47. R2c6 {[%clk 0:01:46]}
47... Rxc6+ {[%clk 0:00:33]} 48. Rxc6 {[%clk 0:02:11]} 48... Re8 {[%clk
0:00:37]} 49. Rc8 {[%clk 0:02:28]} 49... Re6+ {[%clk 0:01:02]} 50. Ka5 {[%clk
0:02:45]} 50... Re5+ {[%clk 0:00:34]} 51. Ka4 {[%clk 0:03:04]} 51... Ba7 {[%clk
0:00:49]} 52. Ra8 {[%clk 0:03:15]} 52... e3 {[%clk 0:00:52]} 53. Rxa7 {[%clk
0:03:36]} 53... Re4+ {[%clk 0:01:16]} 54. Kb3 {[%clk 0:03:58]} 54... Re8 {[%clk
0:01:35]} 55. Ra8 {[%clk 0:04:24]} 55... Re6 {[%clk 0:01:51]} 56. b8=Q {[%clk
0:04:47]} 56... e2 {[%clk 0:02:14]} 57. Ra5 {[%clk 0:04:52]} 57... g6 {[%clk
0:02:34]} 58. Re5 {[%clk 0:05:14]} 58... Rf6 {[%clk 0:03:01]} 59. Rxe2 {[%clk
0:05:39]} 59... h4 {[%clk 0:03:28]} 60. Re8 {[%clk 0:06:01]} 60... Kh6 {[%clk
0:03:53]} 61. Rh8+ {[%clk 0:06:24]} 61... Kg5 {[%clk 0:04:20]} 62. Qe5+ {[%clk
0:06:41]} 62... Rf5 {[%clk 0:04:39]} 63. Nf3+ {[%clk 0:07:05]} 1-0

[Variant "Standard"]
[Site "Europe Echecs"]